[Event "Titled Tuesday Blitz July 4 Early 2023"]
[White "Lazavik, Denis"]
[Black "Wagner, Dennis"]
[WhiteFideId "13515110"]
[BlackFideId "24650684"]
[WhiteElo "3053"]
[BlackElo "2729"]
[Result "1-0"]
[Round "3"]
[TimeControl "180+2"]
[Date "2023.07.04"]
[WhiteClock "0:00:15"]
[BlackClock "0:00:00"]
[Board "5"]

1. d4 {[%clk 0:03:00]}  d5 {[%clk 0:02:59]} 2. c4 {[%clk 0:03:01]}  e6 {[%clk 0:03:00]} 3. Nf3 {[%clk 0:03:01]}  Nf6 {[%clk 0:03:00]} 4. Nc3 {[%clk 0:03:01]}  c5 {[%clk 0:03:00]} 5. cxd5 {[%clk 0:03:00]}  exd5 {[%clk 0:03:01]} 6. Bg5 {[%clk 0:02:55]}  Be6 {[%clk 0:03:02]} 7. Bxf6 {[%clk 0:02:47]}  Qxf6 {[%clk 0:03:03]} 8. e4 {[%clk 0:02:46]}  dxe4 {[%clk 0:02:51]} 9. Bb5+ {[%clk 0:02:45]}  Nc6 {[%clk 0:02:51]} 10. Nxe4 {[%clk 0:02:44]}  Qf4 {[%clk 0:02:51]} 11. Qe2 {[%clk 0:02:40]}  Be7 {[%clk 0:02:51]} 12. O-O {[%clk 0:02:37]}  O-O {[%clk 0:02:51]} 13. Nxc5 {[%clk 0:02:36]}  Nxd4 {[%clk 0:02:50]} 14. Nxd4 {[%clk 0:02:36]}  Bxc5 {[%clk 0:02:50]} 15. Nxe6 {[%clk 0:02:36]}  fxe6 {[%clk 0:02:51]} 16. g3 {[%clk 0:02:33]}  Qf3 {[%clk 0:02:50]} 17. Rae1 {[%clk 0:02:25]}  Rad8 {[%clk 0:02:35]} 18. Bc4 {[%clk 0:02:12]}  Kh8 {[%clk 0:02:34]} 19. Qxf3 {[%clk 0:02:05]}  Rxf3 {[%clk 0:02:33]} 20. Rxe6 {[%clk 0:02:05]}  Rd2 {[%clk 0:02:14]} 21. Re2 {[%clk 0:01:53]}  Rxe2 {[%clk 0:02:08]} 22. Bxe2 {[%clk 0:01:53]}  Rf6 {[%clk 0:02:08]} 23. Kg2 {[%clk 0:01:54]}  g5 {[%clk 0:01:58]} 24. h3 {[%clk 0:01:47]}  Kg7 {[%clk 0:01:56]} 25. Bf3 {[%clk 0:01:39]}  Rb6 {[%clk 0:01:49]} 26. Rc1 {[%clk 0:01:34]}  Bd6 {[%clk 0:01:39]} 27. b3 {[%clk 0:01:33]}  Ra6 {[%clk 0:01:36]} 28. Rc2 {[%clk 0:01:32]}  b5 {[%clk 0:01:19]} 29. Be2 {[%clk 0:01:31]}  Rb6 {[%clk 0:01:18]} 30. Rc8 {[%clk 0:01:31]}  a6 {[%clk 0:00:57]} 31. Rd8 {[%clk 0:01:29]}  Be7 {[%clk 0:00:50]} 32. Rd7 {[%clk 0:01:27]}  Kf6 {[%clk 0:00:50]} 33. Kf3 {[%clk 0:01:16]}  Rd6 {[%clk 0:00:49]} 34. Ra7 {[%clk 0:01:15]}  h5 {[%clk 0:00:43]} 35. Kg2 {[%clk 0:00:58]}  h4 {[%clk 0:00:41]} 36. gxh4 {[%clk 0:00:58]}  gxh4 {[%clk 0:00:42]} 37. f4 {[%clk 0:00:51]}  Rc6 {[%clk 0:00:30]} 38. Kf3 {[%clk 0:00:48]}  Ke6 {[%clk 0:00:22]} 39. Kg4 {[%clk 0:00:45]}  Bf6 {[%clk 0:00:20]} 40. Bf3 {[%clk 0:00:45]}  Rd6 {[%clk 0:00:20]} 41. Be4 {[%clk 0:00:44]}  b4 {[%clk 0:00:13]} 42. Bb7 {[%clk 0:00:30]}  Bd8 {[%clk 0:00:09]} 43. Bxa6 {[%clk 0:00:26]}  Rd4 {[%clk 0:00:09]} 44. Bc4+ {[%clk 0:00:25]}  Kf6 {[%clk 0:00:07]} 45. Ra6+ {[%clk 0:00:22]}  Kg7 {[%clk 0:00:07]} 46. Kf5 {[%clk 0:00:17]}  Be7 {[%clk 0:00:05]} 47. Ra7 {[%clk 0:00:15]}  Kf8 {[%clk 0:00:04]} 48. Kg6 {[%clk 0:00:15]}  Rd6+ {[%clk 0:00:04]} 49. Kh5 {[%clk 0:00:15]}  Rd4 {[%clk 0:00:03]} 50. f5 {[%clk 0:00:15]}  Bf6 {[%clk 0:00:03]} 51. Rf7+ {[%clk 0:00:15]}  Ke8 {[%clk 0:00:03]} 52. Rxf6 {[%clk 0:00:15]}  Ke7 {[%clk 0:00:04]} 53. Re6+ {[%clk 0:00:16]}  Kf8 {[%clk 0:00:05]} 54. f6 {[%clk 0:00:16]}  Rf4 {[%clk 0:00:04]} 55. Ra6 {[%clk 0:00:16]}  Ke8 {[%clk 0:00:03]} 56. Kg5 {[%clk 0:00:15]}  Rf2 {[%clk 0:00:03]} 57. Be6 {[%clk 0:00:16]}  Rg2+ {[%clk 0:00:03]} 58. Bg4 {[%clk 0:00:16]}  Kf7 {[%clk 0:00:02]} 59. Ra7+ {[%clk 0:00:16]}  Kf8 {[%clk 0:00:00]} 60. Kg6 {[%clk 0:00:15]} 1-0


[Site "https://www.chess.com"]

[Event "Titled Tuesday Blitz July 4 Early 2023"]
[White "Bluebaum, Matthias"]
[Black "Rakhimzhan_Alen"]
[WhiteFideId "24651516"]
[WhiteElo "3035"]
[BlackElo "2721"]
[Result "1-0"]
[Round "3"]
[TimeControl "180+2"]
[Date "2023.07.04"]
[WhiteClock "0:00:58"]
[BlackClock "0:00:00"]
[Board "7"]

1. d4 {[%clk 0:03:00]}  Nf6 {[%clk 0:02:52]} 2. c4 {[%clk 0:03:00]}  e6 {[%clk 0:02:52]} 3. Nc3 {[%clk 0:03:01]}  Bb4 {[%clk 0:02:52]} 4. e3 {[%clk 0:03:01]}  O-O {[%clk 0:02:50]} 5. Bd2 {[%clk 0:03:02]}  d5 {[%clk 0:02:47]} 6. Nf3 {[%clk 0:03:02]}  b6 {[%clk 0:02:46]} 7. cxd5 {[%clk 0:03:02]}  exd5 {[%clk 0:02:46]} 8. Rc1 {[%clk 0:03:03]}  Bb7 {[%clk 0:02:36]} 9. Bd3 {[%clk 0:03:03]}  Nbd7 {[%clk 0:02:33]} 10. O-O {[%clk 0:03:03]}  Re8 {[%clk 0:02:31]} 11. Nb5 {[%clk 0:03:04]}  Bd6 {[%clk 0:02:18]} 12. Nxd6 {[%clk 0:03:02]}  cxd6 {[%clk 0:02:19]} 13. Bb4 {[%clk 0:03:03]}  Nf8 {[%clk 0:02:15]} 14. Qb3 {[%clk 0:03:00]}  Ne4 {[%clk 0:02:06]} 15. Rc2 {[%clk 0:02:50]}  a5 {[%clk 0:01:59]} 16. Ba3 {[%clk 0:02:49]}  Ne6 {[%clk 0:01:45]} 17. Rfc1 {[%clk 0:02:47]}  Rb8 {[%clk 0:01:45]} 18. Nd2 {[%clk 0:02:41]}  Qh4 {[%clk 0:01:37]} 19. Bxe4 {[%clk 0:02:35]}  dxe4 {[%clk 0:01:37]} 20. Bxd6 {[%clk 0:02:35]}  Rbd8 {[%clk 0:01:36]} 21. Qxb6 {[%clk 0:02:35]}  Bd5 {[%clk 0:01:34]} 22. Bg3 {[%clk 0:02:35]}  Qh5 {[%clk 0:01:31]} 23. Qxa5 {[%clk 0:02:28]}  Ra8 {[%clk 0:01:31]} 24. Qb5 {[%clk 0:02:29]}  Red8 {[%clk 0:01:22]} 25. a4 {[%clk 0:02:24]}  Qg4 {[%clk 0:01:04]} 26. h3 {[%clk 0:02:22]}  Qg5 {[%clk 0:01:03]} 27. a5 {[%clk 0:02:18]}  h5 {[%clk 0:01:03]} 28. Nb1 {[%clk 0:01:55]}  h4 {[%clk 0:00:50]} 29. Bh2 {[%clk 0:01:55]}  Nxd4 {[%clk 0:00:22]} 30. exd4 {[%clk 0:01:48]}  e3 {[%clk 0:00:22]} 31. f4 {[%clk 0:01:49]}  Qf6 {[%clk 0:00:19]} 32. Nc3 {[%clk 0:01:47]}  Qxd4 {[%clk 0:00:18]} 33. Nxd5 {[%clk 0:01:05]}  e2+ {[%clk 0:00:17]} 34. Kh1 {[%clk 0:01:05]}  Qd1+ {[%clk 0:00:13]} 35. Bg1 {[%clk 0:01:06]}  e1=Q {[%clk 0:00:11]} 36. Rxd1 {[%clk 0:01:07]}  Qxd1 {[%clk 0:00:11]} 37. Ne7+ {[%clk 0:01:07]}  Kf8 {[%clk 0:00:11]} 38. Qc5 {[%clk 0:01:01]}  g6 {[%clk 0:00:02]} 39. Nxg6+ {[%clk 0:00:59]}  Kg7 {[%clk 0:00:03]} 40. Ne7 {[%clk 0:00:58]}  Rd4 {[%clk 0:00:00]} 41. Qxd4+ {[%clk 0:00:58]} 1-0


[Site "https://www.chess.com"]

[Event "Titled Tuesday Blitz July 4 Early 2023"]
[White "Madaminov, Mukhiddin"]
[Black "Suyarov, Mukhammadzokhid"]
[WhiteFideId "14210703"]
[BlackFideId "14210495"]
[WhiteElo "3032"]
[BlackElo "2707"]
[Result "1-0"]
[Round "3"]
[TimeControl "180+2"]
[Date "2023.07.04"]
[WhiteClock "0:00:30"]
[BlackClock "0:00:03"]
[Board "9"]

1. Nf3 {[%clk 0:03:00]}  Nf6 {[%clk 0:02:59]} 2. c4 {[%clk 0:03:01]}  e6 {[%clk 0:02:58]} 3. b3 {[%clk 0:02:59]}  d5 {[%clk 0:02:58]} 4. Bb2 {[%clk 0:03:00]}  Be7 {[%clk 0:02:57]} 5. e3 {[%clk 0:02:59]}  O-O {[%clk 0:02:57]} 6. Nc3 {[%clk 0:02:59]}  c6 {[%clk 0:02:54]} 7. Qc2 {[%clk 0:02:57]}  Na6 {[%clk 0:02:54]} 8. d4 {[%clk 0:02:54]}  c5 {[%clk 0:02:52]} 9. cxd5 {[%clk 0:02:52]}  exd5 {[%clk 0:02:49]} 10. Bxa6 {[%clk 0:02:48]}  bxa6 {[%clk 0:02:47]} 11. dxc5 {[%clk 0:02:48]}  Bxc5 {[%clk 0:02:47]} 12. O-O {[%clk 0:02:49]}  Bd6 {[%clk 0:02:43]} 13. h3 {[%clk 0:02:44]}  Be6 {[%clk 0:02:38]} 14. Qe2 {[%clk 0:02:40]}  Qa5 {[%clk 0:02:36]} 15. Na4 {[%clk 0:02:32]}  Ne4 {[%clk 0:02:32]} 16. Nd4 {[%clk 0:02:26]}  Bd7 {[%clk 0:02:32]} 17. Rac1 {[%clk 0:02:13]}  Rfc8 {[%clk 0:02:31]} 18. Qh5 {[%clk 0:01:41]}  g6 {[%clk 0:02:18]} 19. Qh4 {[%clk 0:01:25]}  Bxa4 {[%clk 0:02:04]} 20. bxa4 {[%clk 0:01:25]}  Qxa4 {[%clk 0:01:57]} 21. Nf3 {[%clk 0:01:21]}  Qxa2 {[%clk 0:01:32]} 22. Bd4 {[%clk 0:01:21]}  h5 {[%clk 0:01:14]} 23. Ra1 {[%clk 0:01:19]}  Qc4 {[%clk 0:01:09]} 24. Nd2 {[%clk 0:01:18]}  Nxd2 {[%clk 0:00:28]} 25. Qf6 {[%clk 0:01:17]}  Bh2+ {[%clk 0:00:29]} 26. Kh1 {[%clk 0:00:57]}  Kf8 {[%clk 0:00:28]} 27. Rxa6 {[%clk 0:00:45]}  Bb8 {[%clk 0:00:13]} 28. Qg7+ {[%clk 0:00:29]}  Ke8 {[%clk 0:00:07]} 29. Qg8+ {[%clk 0:00:29]}  Ke7 {[%clk 0:00:05]} 30. Bf6+ {[%clk 0:00:29]}  Kd7 {[%clk 0:00:03]} 31. Qxf7# {[%clk 0:00:30]} 1-0


[Site "https://www.chess.com"]

[Event "Titled Tuesday Blitz July 4 Early 2023"]
[White "Makarian, Rudik"]
[Black "Koshulyan, Egor A."]
[WhiteFideId "44105681"]
[BlackFideId "24237000"]
[WhiteElo "3003"]
[BlackElo "2701"]
[Result "1-0"]
[Round "3"]
[TimeControl "180+2"]
[Date "2023.07.04"]
[WhiteClock "0:00:54"]
[BlackClock "0:01:11"]
[Board "11"]

1. d4 {[%clk 0:03:00]}  d5 {[%clk 0:03:00]} 2. c4 {[%clk 0:03:01]}  e6 {[%clk 0:03:01]} 3. Nf3 {[%clk 0:03:02]}  Nf6 {[%clk 0:03:01]} 4. g3 {[%clk 0:03:02]}  dxc4 {[%clk 0:03:02]} 5. Bg2 {[%clk 0:03:03]}  a6 {[%clk 0:03:02]} 6. O-O {[%clk 0:03:03]}  Nc6 {[%clk 0:03:03]} 7. e3 {[%clk 0:03:03]}  Rb8 {[%clk 0:03:04]} 8. Nfd2 {[%clk 0:03:03]}  e5 {[%clk 0:03:05]} 9. Bxc6+ {[%clk 0:03:04]}  bxc6 {[%clk 0:03:05]} 10. dxe5 {[%clk 0:03:04]}  Ng4 {[%clk 0:03:06]} 11. Nf3 {[%clk 0:03:05]}  Be6 {[%clk 0:03:03]} 12. Qxd8+ {[%clk 0:02:49]}  Rxd8 {[%clk 0:03:04]} 13. h3 {[%clk 0:02:49]}  Nh6 {[%clk 0:02:58]} 14. Kg2 {[%clk 0:02:50]}  Bd5 {[%clk 0:02:54]} 15. Nc3 {[%clk 0:02:34]}  Bb4 {[%clk 0:02:48]} 16. e4 {[%clk 0:02:30]}  Be6 {[%clk 0:02:45]} 17. Bxh6 {[%clk 0:02:17]}  gxh6 {[%clk 0:02:45]} 18. Rfd1 {[%clk 0:02:18]}  O-O {[%clk 0:02:40]} 19. Nd4 {[%clk 0:02:17]}  Bd7 {[%clk 0:02:22]} 20. Rac1 {[%clk 0:02:12]}  Rfe8 {[%clk 0:02:11]} 21. f4 {[%clk 0:02:12]}  c5 {[%clk 0:02:07]} 22. Nf5 {[%clk 0:01:40]}  Bxc3 {[%clk 0:01:26]} 23. bxc3 {[%clk 0:01:32]}  Ba4 {[%clk 0:01:22]} 24. Rd5 {[%clk 0:01:08]}  Bc6 {[%clk 0:01:18]} 25. Ne7+ {[%clk 0:01:08]}  Rxe7 {[%clk 0:01:16]} 26. Rxd8+ {[%clk 0:01:08]}  Kg7 {[%clk 0:01:17]} 27. Kf3 {[%clk 0:01:06]}  f5 {[%clk 0:01:17]} 28. exf6+ {[%clk 0:00:54]}  Kxf6 {[%clk 0:01:16]} 29. Re1 {[%clk 0:00:54]}  Kg7 {[%clk 0:01:14]} 30. g4 {[%clk 0:00:54]}  h5 {[%clk 0:01:13]} 31. f5 {[%clk 0:00:53]}  hxg4+ {[%clk 0:01:11]} 32. hxg4 {[%clk 0:00:54]} 1-0


[Site "https://www.chess.com"]

[Event "Titled Tuesday Blitz July 4 Early 2023"]
[White "Terry, Renato"]
[Black "Goryachkina, Aleksandra"]
[WhiteFideId "3803457"]
[BlackFideId "4147103"]
[WhiteElo "2992"]
[BlackElo "2690"]
[Result "1-0"]
[Round "3"]
[TimeControl "180+2"]
[Date "2023.07.04"]
[WhiteClock "0:00:19"]
[BlackClock "0:00:00"]
[Board "13"]

1. Nf3 {[%clk 0:03:00]}  d5 {[%clk 0:02:56]} 2. e3 {[%clk 0:02:59]}  Nf6 {[%clk 0:02:54]} 3. b3 {[%clk 0:02:59]}  Bf5 {[%clk 0:02:52]} 4. Bb2 {[%clk 0:02:58]}  e6 {[%clk 0:02:52]} 5. Be2 {[%clk 0:02:57]}  h6 {[%clk 0:02:52]} 6. O-O {[%clk 0:02:57]}  Nbd7 {[%clk 0:02:51]} 7. d3 {[%clk 0:02:57]}  Be7 {[%clk 0:02:49]} 8. Nbd2 {[%clk 0:02:57]}  O-O {[%clk 0:02:47]} 9. Re1 {[%clk 0:02:54]}  Bh7 {[%clk 0:02:43]} 10. Bf1 {[%clk 0:02:53]}  c6 {[%clk 0:02:34]} 11. h3 {[%clk 0:02:49]}  a5 {[%clk 0:02:28]} 12. a3 {[%clk 0:02:45]}  b5 {[%clk 0:02:17]} 13. a4 {[%clk 0:02:43]}  bxa4 {[%clk 0:02:06]} 14. Rxa4 {[%clk 0:02:42]}  Nb6 {[%clk 0:02:06]} 15. Ra2 {[%clk 0:02:42]}  a4 {[%clk 0:02:05]} 16. Qa1 {[%clk 0:02:23]}  axb3 {[%clk 0:01:59]} 17. Nxb3 {[%clk 0:02:24]}  c5 {[%clk 0:01:48]} 18. Na5 {[%clk 0:02:14]}  Qc8 {[%clk 0:01:25]} 19. Rb1 {[%clk 0:02:08]}  Nbd7 {[%clk 0:01:18]} 20. Bc3 {[%clk 0:01:55]}  Bd6 {[%clk 0:01:07]} 21. Rbb2 {[%clk 0:01:35]}  Re8 {[%clk 0:01:03]} 22. Nb7 {[%clk 0:01:23]}  Rxa2 {[%clk 0:01:00]} 23. Qxa2 {[%clk 0:01:24]}  Bf8 {[%clk 0:00:57]} 24. Ne5 {[%clk 0:01:19]}  Nxe5 {[%clk 0:00:55]} 25. Bxe5 {[%clk 0:01:19]}  Nd7 {[%clk 0:00:51]} 26. Nd6 {[%clk 0:01:05]}  Bxd6 {[%clk 0:00:50]} 27. Bxd6 {[%clk 0:01:06]}  Qc6 {[%clk 0:00:50]} 28. Bg3 {[%clk 0:01:06]}  Ra8 {[%clk 0:00:41]} 29. Qb3 {[%clk 0:01:06]}  Bg6 {[%clk 0:00:38]} 30. Be2 {[%clk 0:01:00]}  Kh7 {[%clk 0:00:30]} 31. Kh2 {[%clk 0:01:00]}  Nf6 {[%clk 0:00:24]} 32. Be5 {[%clk 0:00:57]}  Nd7 {[%clk 0:00:22]} 33. Bg3 {[%clk 0:00:58]}  Nf6 {[%clk 0:00:22]} 34. Bf3 {[%clk 0:00:56]}  Ra1 {[%clk 0:00:17]} 35. Qc3 {[%clk 0:00:54]}  Rc1 {[%clk 0:00:13]} 36. Ra2 {[%clk 0:00:46]}  Qb6 {[%clk 0:00:10]} 37. Ra1 {[%clk 0:00:42]}  Rxa1 {[%clk 0:00:10]} 38. Qxa1 {[%clk 0:00:43]}  c4 {[%clk 0:00:09]} 39. Be2 {[%clk 0:00:42]}  cxd3 {[%clk 0:00:09]} 40. cxd3 {[%clk 0:00:43]}  Qb3 {[%clk 0:00:08]} 41. Qd4 {[%clk 0:00:33]}  Qc2 {[%clk 0:00:08]} 42. Bf1 {[%clk 0:00:34]}  Qb1 {[%clk 0:00:07]} 43. Kg1 {[%clk 0:00:34]}  Nd7 {[%clk 0:00:07]} 44. f3 {[%clk 0:00:32]}  Nb6 {[%clk 0:00:05]} 45. e4 {[%clk 0:00:32]}  dxe4 {[%clk 0:00:03]} 46. dxe4 {[%clk 0:00:28]}  Qb3 {[%clk 0:00:02]} 47. Kh2 {[%clk 0:00:21]}  Na4 {[%clk 0:00:02]} 48. Bf2 {[%clk 0:00:21]}  Nc3 {[%clk 0:00:02]} 49. Qd3 {[%clk 0:00:20]}  Qb1 {[%clk 0:00:01]} 50. Qc4 {[%clk 0:00:19]}  Nd1 {[%clk 0:00:01]} 51. Bd4 {[%clk 0:00:19]}  Nb2 {[%clk 0:00:00]} 52. Qb5 {[%clk 0:00:19]} 1-0


[Site "https://www.chess.com"]

[Event "Titled Tuesday Blitz July 4 Early 2023"]
[White "Bauman_Guy"]
[Black "Oparin, Grigoriy"]
[BlackFideId "24125890"]
[WhiteElo "2689"]
[BlackElo "2982"]
[Result "0-1"]
[Round "3"]
[TimeControl "180+2"]
[Date "2023.07.04"]
[WhiteClock "0:00:32"]
[BlackClock "0:00:53"]
[Board "14"]

1. e4 {[%clk 0:03:00]}  c6 {[%clk 0:03:00]} 2. d4 {[%clk 0:03:00]}  d5 {[%clk 0:03:01]} 3. e5 {[%clk 0:03:01]}  c5 {[%clk 0:03:02]} 4. dxc5 {[%clk 0:02:59]}  e6 {[%clk 0:03:02]} 5. Nf3 {[%clk 0:02:59]}  Bxc5 {[%clk 0:03:03]} 6. a3 {[%clk 0:02:58]}  Ne7 {[%clk 0:03:03]} 7. Bd3 {[%clk 0:02:57]}  Ng6 {[%clk 0:03:01]} 8. O-O {[%clk 0:02:57]}  Nc6 {[%clk 0:02:57]} 9. b4 {[%clk 0:02:58]}  Bb6 {[%clk 0:02:54]} 10. Bb2 {[%clk 0:02:56]}  Nf4 {[%clk 0:02:52]} 11. c4 {[%clk 0:02:53]}  Bc7 {[%clk 0:02:52]} 12. g3 {[%clk 0:02:37]}  Ng6 {[%clk 0:02:36]} 13. cxd5 {[%clk 0:02:27]}  exd5 {[%clk 0:02:21]} 14. b5 {[%clk 0:02:21]}  Na5 {[%clk 0:02:14]} 15. Nbd2 {[%clk 0:02:15]}  O-O {[%clk 0:02:14]} 16. h4 {[%clk 0:02:10]}  Bg4 {[%clk 0:02:13]} 17. Qa4 {[%clk 0:02:10]}  Qd7 {[%clk 0:02:03]} 18. Rac1 {[%clk 0:02:05]}  Bb6 {[%clk 0:02:02]} 19. Bc3 {[%clk 0:01:51]}  Nc4 {[%clk 0:01:48]} 20. Bxc4 {[%clk 0:01:36]}  dxc4 {[%clk 0:01:43]} 21. Qxc4 {[%clk 0:01:35]}  Rac8 {[%clk 0:01:43]} 22. Qe2 {[%clk 0:01:33]}  Rfd8 {[%clk 0:01:33]} 23. Rfd1 {[%clk 0:01:33]}  Qf5 {[%clk 0:01:29]} 24. Kg2 {[%clk 0:01:32]}  Rd3 {[%clk 0:01:16]} 25. Bb4 {[%clk 0:01:18]}  Rcd8 {[%clk 0:01:14]} 26. Bd6 {[%clk 0:01:16]}  h6 {[%clk 0:01:02]} 27. Rc4 {[%clk 0:01:15]}  Nxe5 {[%clk 0:00:53]} 28. Qxe5 {[%clk 0:00:43]}  Bxf3+ {[%clk 0:00:52]} 29. Nxf3 {[%clk 0:00:32]}  Qxf3+ {[%clk 0:00:53]} 0-1


[Site "https://www.chess.com"]

[Event "Titled Tuesday Blitz July 4 Early 2023"]
[White "Petrosian, Karlen"]
[Black "Indjic, Aleksandar"]
[WhiteFideId "4176146"]
[BlackFideId "911925"]
[WhiteElo "2684"]
[BlackElo "2974"]
[Result "0-1"]
[Round "3"]
[TimeControl "180+2"]
[Date "2023.07.04"]
[WhiteClock "0:00:09"]
[BlackClock "0:00:12"]
[Board "16"]

1. e4 {[%clk 0:03:00]}  e5 {[%clk 0:02:53]} 2. Nc3 {[%clk 0:02:59]}  Nf6 {[%clk 0:02:51]} 3. Bc4 {[%clk 0:02:59]}  Nc6 {[%clk 0:02:50]} 4. d3 {[%clk 0:02:59]}  Na5 {[%clk 0:02:49]} 5. Qf3 {[%clk 0:03:00]}  d6 {[%clk 0:02:46]} 6. Nge2 {[%clk 0:02:59]}  Nxc4 {[%clk 0:02:42]} 7. dxc4 {[%clk 0:02:58]}  Be6 {[%clk 0:02:41]} 8. b3 {[%clk 0:02:57]}  g6 {[%clk 0:02:41]} 9. Bg5 {[%clk 0:02:40]}  Be7 {[%clk 0:02:34]} 10. O-O {[%clk 0:02:33]}  h6 {[%clk 0:02:33]} 11. Bxf6 {[%clk 0:02:28]}  Bxf6 {[%clk 0:02:33]} 12. Nd5 {[%clk 0:02:29]}  Bg7 {[%clk 0:02:32]} 13. Rad1 {[%clk 0:02:23]}  c6 {[%clk 0:02:32]} 14. Ndc3 {[%clk 0:02:23]}  Qe7 {[%clk 0:02:31]} 15. Rd3 {[%clk 0:02:20]}  O-O {[%clk 0:02:22]} 16. Rfd1 {[%clk 0:02:21]}  Rad8 {[%clk 0:02:22]} 17. a4 {[%clk 0:02:19]}  f5 {[%clk 0:02:20]} 18. Qe3 {[%clk 0:02:10]}  b6 {[%clk 0:02:14]} 19. Qd2 {[%clk 0:02:10]}  f4 {[%clk 0:00:45]} 20. Rxd6 {[%clk 0:01:39]}  Rc8 {[%clk 0:00:45]} 21. f3 {[%clk 0:01:18]}  Rfe8 {[%clk 0:00:44]} 22. Rd3 {[%clk 0:01:10]}  g5 {[%clk 0:00:43]} 23. h3 {[%clk 0:01:04]}  h5 {[%clk 0:00:41]} 24. Kf2 {[%clk 0:01:04]}  Bf8 {[%clk 0:00:41]} 25. Rh1 {[%clk 0:01:03]}  Qf7 {[%clk 0:00:37]} 26. g4 {[%clk 0:00:59]}  Bc5+ {[%clk 0:00:26]} 27. Kg2 {[%clk 0:00:54]}  Kg7 {[%clk 0:00:23]} 28. Qe1 {[%clk 0:00:52]}  Rh8 {[%clk 0:00:22]} 29. Rd1 {[%clk 0:00:43]}  Rh6 {[%clk 0:00:20]} 30. Nc1 {[%clk 0:00:43]}  a5 {[%clk 0:00:19]} 31. Nd3 {[%clk 0:00:43]}  Bd6 {[%clk 0:00:19]} 32. Nxf4 {[%clk 0:00:35]}  Qxf4 {[%clk 0:00:14]} 33. Rxd6 {[%clk 0:00:35]}  Bxg4 {[%clk 0:00:15]} 34. hxg4 {[%clk 0:00:25]}  Rxd6 {[%clk 0:00:14]} 35. Rxh5 {[%clk 0:00:25]}  Rd2+ {[%clk 0:00:13]} 36. Ne2 {[%clk 0:00:25]}  Qe3 {[%clk 0:00:13]} 37. Qh1 {[%clk 0:00:12]}  Qxe2+ {[%clk 0:00:11]} 38. Kh3 {[%clk 0:00:12]}  Rh8 {[%clk 0:00:10]} 39. Rxh8 {[%clk 0:00:11]}  Kxh8 {[%clk 0:00:11]} 40. Kg3+ {[%clk 0:00:09]}  Kg7 {[%clk 0:00:12]} 0-1


[Site "https://www.chess.com"]

[Event "Titled Tuesday Blitz July 4 Early 2023"]
[White "Kollars, Dmitrij"]
[Black "Fromm, Marius"]
[WhiteFideId "12909572"]
[BlackFideId "12993190"]
[WhiteElo "2955"]
[BlackElo "2680"]
[Result "1-0"]
[Round "3"]
[TimeControl "180+2"]
[Date "2023.07.04"]
[WhiteClock "0:01:27"]
[BlackClock "0:00:11"]
[Board "17"]

1. Nf3 {[%clk 0:03:00]}  c5 {[%clk 0:02:59]} 2. e4 {[%clk 0:02:58]}  e6 {[%clk 0:02:56]} 3. Bd3 {[%clk 0:02:57]}  Nc6 {[%clk 0:02:56]} 4. O-O {[%clk 0:02:57]}  Nf6 {[%clk 0:02:52]} 5. e5 {[%clk 0:02:51]}  Nd5 {[%clk 0:02:51]} 6. Be4 {[%clk 0:02:51]}  d6 {[%clk 0:02:44]} 7. c4 {[%clk 0:02:47]}  Ndb4 {[%clk 0:02:34]} 8. exd6 {[%clk 0:02:42]}  Bxd6 {[%clk 0:02:17]} 9. a3 {[%clk 0:02:41]}  Na6 {[%clk 0:02:17]} 10. d4 {[%clk 0:02:38]}  Nxd4 {[%clk 0:02:07]} 11. Nxd4 {[%clk 0:02:36]}  cxd4 {[%clk 0:02:07]} 12. b4 {[%clk 0:02:37]}  Bxh2+ {[%clk 0:01:54]} 13. Kxh2 {[%clk 0:02:38]}  Qh4+ {[%clk 0:01:50]} 14. Kg1 {[%clk 0:02:38]}  Qxe4 {[%clk 0:01:51]} 15. Bb2 {[%clk 0:02:38]}  O-O {[%clk 0:01:44]} 16. Re1 {[%clk 0:02:38]}  Qg6 {[%clk 0:01:37]} 17. Qxd4 {[%clk 0:02:36]}  b6 {[%clk 0:01:38]} 18. Re3 {[%clk 0:02:36]}  f6 {[%clk 0:01:27]} 19. Nc3 {[%clk 0:02:30]}  Bb7 {[%clk 0:01:14]} 20. Rg3 {[%clk 0:02:30]}  Qf7 {[%clk 0:01:12]} 21. Ne4 {[%clk 0:02:30]}  Rad8 {[%clk 0:01:01]} 22. Nxf6+ {[%clk 0:02:11]}  Kh8 {[%clk 0:00:58]} 23. Nd5 {[%clk 0:02:07]}  Rd7 {[%clk 0:00:46]} 24. Rf3 {[%clk 0:01:50]}  Qg8 {[%clk 0:00:36]} 25. Rxf8 {[%clk 0:01:41]}  Qxf8 {[%clk 0:00:37]} 26. Qg4 {[%clk 0:01:41]}  Qf5 {[%clk 0:00:28]} 27. Qxf5 {[%clk 0:01:34]}  exf5 {[%clk 0:00:28]} 28. Re1 {[%clk 0:01:35]}  Bxd5 {[%clk 0:00:23]} 29. cxd5 {[%clk 0:01:34]}  Nc7 {[%clk 0:00:21]} 30. d6 {[%clk 0:01:28]}  Rxd6 {[%clk 0:00:21]} 31. Re7 {[%clk 0:01:28]}  Rc6 {[%clk 0:00:11]} 32. Be5 {[%clk 0:01:27]} 1-0


[Site "https://www.chess.com"]